Cogmind - Beta 15 @@@ ROGUE MODE // 2025.05.06 @ 11:38:13 Player: Andru7428 Result: Destroyed by WI-M1L(R) with Subdweller Beam Cannon Performance ------------- Evolutions (0) 0 Regions Visited (2) 400 Robots Destroyed (28) 140 Value Destroyed (745) 745 Prototype IDs (14) 280 Alien Tech Used (0) 0 Bonus (-40) -40 TOTAL SCORE: 1525 Bonus ------- Friendly Fire -40 Cogmind --------- Core Integrity 0/250 Matter 46/300 Energy 84/100 System Corruption 1% Temperature Cool (9) Movement Treading (160) Location -10/Subcaves Parts ------- > --- POWER (1) -------- (None) > --- PROPULSION (2) --- Light Treads Light Treads > --- UTILITY (2) ------ Large Storage Unit Seismic Detector > --- WEAPON (2) ------- Autogun Barrage Gun > --- INVENTORY (15) --- Light Treads Light Treads Light Treads Improved Heat Sink High-capacity Storage Unit Large Matter Pod (150) Machine Analyzer Rainbow Chip Autogun Autogun Autogun Grenade Launcher Subdweller Shrapnel Launcher Multitool Peak State ------------ > --- POWER ------------ Subdweller Power Source > --- PROPULSION ------- Light Treads Light Treads > --- UTILITY ---------- Large Storage Unit Seismic Detector > --- WEAPON ----------- Light EM Pulse Cannon Barrage Gun > --- INVENTORY -------- Light Treads Light Treads Light Treads Improved Heat Sink High-capacity Storage Unit Large Matter Pod Machine Analyzer Rainbow Chip Autogun Autogun Autogun Autogun Grenade Launcher Subdweller Shrapnel Launcher Multitool [Rating: 14] Favorites ----------- Power Light Ion Engine Engine Light Ion Engine Propulsion Light Treads Treads Light Treads Utility Seismic Detector Device Seismic Detector Storage Large Storage Unit Weapon Light EM Pulse Cannon Energy Cannon Light EM Pulse Cannon Ballistic Gun Assault Rifle Launcher Grenade Launcher Build | -11 -10 -10 ------- Run | Yrd Mat Sub Slots Evolved . | . . . Power . | . . . Propulsion . | . . . Utility . | . . . Weapon . | . . . Parts Attached 20 | 7 4 9 Power 3 | 1 . 2 Engine 3 | 1 . 2 Core . | . . . Reactor . | . . . Propulsion 3 | 2 . 1 Treads 3 | 2 . 1 Leg . | . . . Wheel . | . . . Hover . | . . . Flight . | . . . Utility 4 | 2 2 . Device 1 | 1 . . Storage 3 | 1 2 . Processor . | . . . Hackware . | . . . Protection . | . . . Artifact . | . . . Weapon 10 | 2 2 6 Energy Gun . | . . . Energy Cannon 2 | . . 2 Ballistic Gun 6 | 2 2 2 Ballistic Cannon . | . . . Launcher 2 | . . 2 Special Weapon . | . . . Impact Weapon . | . . . Slashing Weapon . | . . . Piercing Weapon . | . . . Special Melee Weapon . | . . . Unidentified Prototypes . | . . . Parts Lost 5 | . . 5 Power 2 | . . 2 Propulsion 1 | . . 1 Utility . | . . . Weapon 2 | . . 2 Highest Loss Streak 1 | . . 1 To Critical Strikes . | . . . Average Backups 12 | 5 8 14 Power . | 1 1 . Propulsion 2 | 3 2 2 Utility 3 | . 1 4 Weapon 5 | . 3 6 Tool/Special . | . . . Unused Backups 20 | . 8 12 Power 1 | . 1 . Propulsion 7 | . 4 3 Utility 7 | . 2 5 Weapon 4 | . 1 3 Tool/Special 1 | . . 1 Average Slot Usage (%) 98 | . 99 98 Engine 13 | . 14 12 Treads 27 | . 27 28 Device 14 | . 14 14 Storage 14 | . 14 14 Energy Cannon 10 | . . 16 Ballistic Gun 17 | . 28 10 Peak Build Rating 14 | 7 10 14 Average Rating 10 | 4 8 12 On Entrance 5 | . 7 10 Naked Turns . | . . . Heaviest Build 34 | 13 30 34 Greatest Support 40 | 40 40 40 Greatest Overweight (x) 2 | 2 . . Average Overweight (x) . | . . . Largest Inventory Capacity 15 | 8 15 15 Average Capacity 13 | 7 10 15 Most Carried 15 | 7 10 15 Average Carried 12 | 5 8 14 Final Capacity 15 | 8 15 15 Final Carried 14 | 6 10 14 Class Distribution -------------------- 100% | Mutant Dominant Class ---------------- Mutant | -10/Materials Mutant | -10/Subcaves Resources | -11 -10 -10 ----------- Run | Yrd Mat Sub Matter Collected 1074 | 241 500 333 Remotely . | . . . Salvage Created 932 | 23 415 494 Parts 77 | 3 37 37 Haulers Intercepted 2 | . 2 . Recyclers Shooed 1 | 1 . . Parts Field Recycled . | . . . Retrieved Matter . | . . . Parts Self-Destructed 6 | . . 6 Prevented 1 | . . 1 Kills | -11 -10 -10 ------- Run | Yrd Mat Sub Combat Hostiles Destroyed 21 | . 9 12 Guns 12 | . 9 3 Cannons 6 | . . 6 AOE 3 | . . 3 Classes Destroyed 9 | 1 5 3 Worker 1 | . 1 . Tunneler 1 | 1 . . Hauler 2 | . 2 . Watcher 3 | . 3 . Swarmer 5 | . 5 . Grunt 6 | . 4 2 Sentry 1 | . . 1 Subdweller 9 | . . 9 Scientist 1 | . . 1 Best Kill Streak 5 | 1 5 2 Combat Bots Only 4 | . 4 2 Max Kills in Single Turn 2 | 1 2 1 Gunslinging . | . . . Exploded 1 | . . 1 Melee . | . . . Uniques/NPCs Destroyed . | . . . Combat | -11 -10 -10 -------- Run | Yrd Mat Sub Hostile Shots Fired 97 | . 50 47 Missed 24 | . 15 9 Hits 73 | . 35 38 Projectile 73 | . 35 38 Critical Strikes 1 | . . 1 Damage Taken 1429 | . 376 1053 Core 272 | . 48 224 Absorbed by Shields . | . . . Regen/Repaired (Parts) 190 | . 190 . Core Remaining (%) 100 | 100 . . Volleys Fired 119 | 7 31 81 Largest 2 | 2 2 2 Hottest 112 | 40 46 112 Shots Fired 182 | 14 62 106 Gun 143 | 14 62 67 Cannon 26 | . . 26 Launcher 13 | . . 13 Special . | . . . Kinetic 149 | 14 62 73 Thermal . | . . . Explosive 7 | . . 7 Electromagnetic 26 | . . 26 Robot Hit Streak 29 | 2 6 29 Robot Miss Streak 4 | 2 4 2 Penetration Max . | . . . Secondary Targets . | . . . Shots Hit Robots 86 | 7 34 45 Core Hits 45 | 2 19 24 Critical Kills . | . . . Critical Parts Destroyed . | . . . Critical Strikes 2 | . . 2 Corrupt 2 | . . 2 Melee Attacks . | . . . Impact . | . . . Slashing . | . . . Piercing . | . . . Sneak Attacks . | . . . Combat Hostiles . | . . . Follow-up Attacks . | . . . Damage Inflicted 1928 | 86 482 1360 Guns 929 | 86 482 361 Cannons 390 | . . 390 Explosions 609 | . . 609 Melee . | . . . Ramming . | . . . Kinetic 1193 | 86 482 625 Thermal 80 | . . 80 Explosive 265 | . . 265 Electromagnetic 390 | . . 390 Impact . | . . . Slashing . | . . . Piercing . | . . . Highest Corruption 1 | . 1 1 Average Corruption 1 | . 1 1 Corruption Purged . | . . . Corruption Blocked . | . . . Effects 22 | . 6 16 Message Errors 5 | . 1 4 Matter Fused 3 | . 1 2 Heat Flow Errors 2 | . . 2 Energy Discharges 4 | . 3 1 Parts Rejected 1 | . . 1 Data Loss (minor) 5 | . 1 4 Misfires 2 | . . 2 Overload Shots . | . . . Overflow Damage . | . . . Projectiles . | . . . Explosions . | . . . Melee . | . . . Knockbacks . | . . . Impact . | . . . Kinetic . | . . . Secondary . | . . . Self-Inflicted Damage 132 | . . 132 Shots 3 | . . 3 Rammed . | . . . Targets Rammed . | . . . Kicked . | . . . Crushed . | . . . Highest Temperature 168 | . 12 168 Average Temperature 13 | . 5 19 Received Heat Transfer 318 | . 141 177 Siege Activations . | . . . Martial Activations . | . . . Shielding Activations . | . . . Robots Disrupted . | . . . Combat Hostiles . | . . . Robots Corrupted . | . . . Combat Hostiles . | . . . Parts Fried 2 | . . 2 Impact Corruptions . | . . . Robots Melted . | . . . Combat Hostiles . | . . . Parts Melted . | . . . Heat Transferred 100 | . . 100 Parts Sabotaged . | . . . Parts Stolen . | . . . Parts Stripped . | . . . Power Chain Reactions 2 | . . 2 Alert | -11 -10 -10 ------- Run | Yrd Mat Sub Maximum Alert Level . | . . . Low Security (%) 100 | 100 100 . Level 1 . | . . . Level 2 . | . . . Level 3 . | . . . Level 4 . | . . . Level 5 . | . . . High Security . | . . . Max Security . | . . . Peak Influence 102 | 5 102 . Initial . | . . . Average 25 | . 28 . Influence Increases 368 | 5 293 70 Destroy 0b10 Robot/C 240 | . 180 60 Destroy 0b10 Robot/NC 35 | 5 30 . Destroy Leader 50 | . 40 10 Successful Hack 11 | . 11 . Destroy Structure 2 | . 2 . Lose Combat Pursuer 30 | . 30 . Influence Decreases 368 | 5 293 70 Time Decay 368 | 5 293 70 Squads Dispatched 1 | . 1 . Investigation 1 | . 1 . Extermination . | . . . Reinforcement . | . . . Assault . | . . . Garrison . | . . . Intercept . | . . . Searches Triggered . | . . . Construction Impeded . | . . . Haulers Reinforced . | . . . Active Scanning Responses . | . . . Cargo Convoy Interrupts . | . . . Stealth | -11 -10 -10 --------- Run | Yrd Mat Sub Distress Signals . | . . . Communications Jammed . | . . . Distress Signals . | . . . Times Spotted 28 | . 15 13 Peak Tracking Total 4 | . 4 2 Tactical Retreats 1 | . 1 . Traps | -11 -10 -10 ------- Run | Yrd Mat Sub Traps Triggered 5 | . 2 3 Indirectly . | . . . Trap Hack Attempts . | . . . Triggered . | . . . Disarmed . | . . . Reprogrammed . | . . . Reused . | . . . Traps Extracted . | . . . Installed . | . . . Triggered . | . . . Machines | -11 -10 -10 ---------- Run | Yrd Mat Sub Machines Disabled 1 | . . 1 Max in Single Turn 1 | . . 1 Machines Repaired . | . . . Machines Dismantled . | . . . Machines Sabotaged . | . . . Overloaded Fab Kills . | . . . Hacking | -11 -10 -10 --------- Run | Yrd Mat Sub Machines Accessed 12 | . 9 3 Terminals 7 | . 7 . Fabricators . | . . . Repair Stations 1 | . 1 . Recycling Units 1 | . 1 . Scanalyzers . | . . . Garrison Access . | . . . Total Hacks 43 | . 32 11 Successful 30 | . 19 11 Failed 12 | . 12 . Catastrophic 3 | . 3 . Database Lockouts 1 | . 1 . Manual 18 | . 18 . Terminals 24 | . 24 . Fabricators . | . . . Repair Stations 6 | . 6 . Recycling Units 2 | . 2 . Scanalyzers . | . . . Garrison Access . | . . . Terminal Hacks 22 | . 11 11 Record 10 | . 1 9 Robot Analysis 2 | . 2 . Prototype ID Bank 3 | . 3 . Open Door 1 | . . 1 Emergency Access Points 1 | . 1 . Locate Traps 1 | . 1 . Zone Layout 3 | . 3 . Proto ID Catalog 1 | . . 1 Fabricator Hacks . | . . . Repair Station Hacks 5 | . 5 . Scan Component 3 | . 3 . Repair 2 | . 2 . Recycling Unit Hacks . | . . . Scanalyzer . | . . . Garrison Access Hacks . | . . . Unauthorized Hacks 3 | . 3 . Terminals 3 | . 3 . Track 1 | . 1 . Botnet 2 | . 2 . Fabricators . | . . . Repair Stations . | . . . Recycling Units . | . . . Scanalyzers . | . . . Garrison Access . | . . . Data Cores Recovered . | . . . Used . | . . . Hacking Detections 8 | . 8 . Full Trace Events . | . . . Feedback Events . | . . . Feedback Blocked . | . . . Robot Schematics Acquired . | . . . Robots Built . | . . . Authchips . | . . . Time . | . . . Total Robot Build Rating . | . . . Part Schematics Acquired . | . . . Parts Built . | . . . Authchips . | . . . Time . | . . . Total Part Build Rating . | . . . Parts Repaired 2 | . 2 . Time 52 | . 52 . Parts Recycled . | . . . Recycled Matter . | . . . Retrieved Matter . | . . . Retrieved Components . | . . . Parts Scanalyzed . | . . . Part Schematics Acquired . | . . . Parts Damaged . | . . . Bothacking | -11 -10 -10 ------------ Run | Yrd Mat Sub Used RIF Installer . | . . . Robots Hacked . | . . . Non-combat . | . . . Combat . | . . . Robot Hacks Applied . | . . . Relay Couplers Released . | . . . Fabnet Peak Effective % . | . . . Robots Rewired . | . . . Allies Hacked . | . . . Hacks Repelled . | . . . Allies | -11 -10 -10 -------- Run | Yrd Mat Sub Total Allies . | . . . Largest Group . | . . . Highest-Rated Group . | . . . Highest-Rated Ally . | . . . Total Orders . | . . . Ally Attacks . | . . . Total Damage . | . . . Kills . | . . . Allies Corrupted . | . . . Allies Melted . | . . . Intel | -11 -10 -10 ------- Run | Yrd Mat Sub Active Infowar (turns) 3549 | 49 1240 2260 Seismic 3549 | 49 1240 2260 Robot Analysis Total 2 | . 2 . Derelict Logs Recovered 1 | . . 1 Drone Launches . | . . . Drone Recoveries . | . . . Exploration | -11 -10 -10 ------------- Run | Yrd Mat Sub Turns Passed 3619 | 119 1240 2260 Spaces Moved 1954 | 57 652 1245 Core 16 | 16 . . Treads 1938 | 41 652 1245 Legs . | . . . Wheels . | . . . Hover . | . . . Flight . | . . . Fastest Speed 50 | 50 160 160 Average Speed 159 | 144 160 160 Slowest Speed 160 | 160 160 160 Overloaded Moves . | . . . Propulsion Burnouts . | . . . Robots Hopped . | . . . Potential Cave-ins . | . . . Cave-ins Triggered . | . . . Exploration Rate (%) 57 | 6 87 79 Regions Visited 2 Branch Regions 1 Pre-discovered Areas 1 | . . 1 Known Exits Taken . | . . . Unknown Exits Taken 2 | 1 1 . Scrap Searched 4 | . . 4 Spaces Dug . | . . . Terrain Destroyed 68 | . . 68 Melee . | . . . Projectile . | . . . AOE 68 | . . 68 Terrain Rammed . | . . . Walls Destroyed . | . . . Machines Disabled . | . . . Actions | -11 -10 -10 --------- Run | Yrd Mat Sub Total 2281 | 77 797 1407 Wait 138 | . 83 55 Move 1952 | 56 651 1245 Hop . | . . . Pick Up 31 | 7 14 10 Fast Attach 9 | 6 2 1 Attach 5 | 1 . 4 Detach . | . . . Swap 13 | . 4 9 Drop 14 | . 12 2 Fire 119 | 7 31 81 Melee . | . . . Ram . | . . . Kick . | . . . Crush . | . . . Escape Stasis . | . . . Rewire . | . . . Trap . | . . . Miscellaneous . | . . . Route ------- -11/Scrapyard -10/Materials (discovered 5 exits: [*Mat x3] / [*Min] / *Sub) -10/Subcaves (discovered 2 exits: [*Mat x2]) History --------- Turn | Location | Event 33 | -11/Scrapyard | Discovered new exit (range 16) 120 | -11/Scrapyard | Entered Materials 213 | -10/Materials | Central database locked down 316 | -10/Materials | Build established: Mutant 365 | -10/Materials | Discovered new exit (range 6) 536 | -10/Materials | Discovered new exit (range 5) 672 | -10/Materials | Discovered new exit (range 7) 686 | -10/Materials | Discovered new exit (range 16) 909 | -10/Materials | Discovered new exit (range 5) 920 | -10/Materials | Derelicts attacked the area 1131 | -10/Materials | Repaired Lgt. Treads 1158 | -10/Materials | Repaired Lgt. Treads 1360 | -10/Materials | Entered Subcaves 1361 | -10/Subcaves | Approached by a straggling Scientist 1374 | -10/Subcaves | Discovered new exit (range 13) 2177 | -10/Subcaves | Visited 4L-MR0's lab 2199 | -10/Subcaves | Found Rainbow Chip 2347 | -10/Subcaves | Learned location of Zion (-6) 2347 | -10/Subcaves | Met a Zionite searching for "candidates" 2546 | -10/Subcaves | Shifting Twisted Machinery released Sub. Optics 2550 | -10/Subcaves | Shifting Twisted Machinery released Sub. Shrapnel Launcher 2585 | -10/Subcaves | Learned Materials emergency access door positions 2741 | -10/Subcaves | Shifting Twisted Machinery released Sub. Laser 3136 | -10/Subcaves | Core integrity fell below 50% 3193 | -10/Subcaves | Shifting Twisted Machinery released Shrapnel Trap 3202 | -10/Subcaves | Discovered new exit (range 5) 3251 | -10/Subcaves | Shifting Twisted Machinery released Battle Rifle 3573 | -10/Subcaves | Core integrity fell below 20% 3604 | -10/Subcaves | Ambushed by Subdweller buried in earth 3620 | -10/Subcaves | Destroyed by WI-M1L(R) with Subdweller Beam Cannon Last Messages --------------- 03155_ Acquired 51 matter. 03158_ Acquired Sub. Power Source. Shrapnel Trap falls loose from the Twisted Machinery. 03202_ EXIT=FOUND Battle Rifle falls loose from the Twisted Machinery. 03284_ 07-KW0(u) tweaks Twisted Machinery. 03310_ System corrupted: Matter fused (-8). 03350_ 8MLUQLXKTMUMP20|OGRG9L& 03366_ Sub. Power Source shoots sparks and powers down. 03443_ System corrupted: Broken Sub. Power Source rejected. 03448_ Lgt. EM Pulse Cannon destroyed. 03456_ RM-UHT(R) destroyed. 03475_ Acquired 29 matter. 03576_ FG-Q5C(R) destroyed. 03605_ WI-M1L(R): "NAT20!" 03614_ YE-UK0(R) destroyed. Map ----- +----------------------------------------------------+ | ??????????????????????????????????? #???????????? | | ???????????????????????????##?????# #???????????? | | ??????????????????????????## ##### #???????????? | | ??????????????????????##### #???????????? | | ???????????????? ???? ###?????????? | | ???????????????? ???? ###???????? | | ????????????????? ???? #???????? | | ??????????????????# #????# #???????? | | ???????????????????# #???# #????????? | | ????????????? ???# #???# ##???????? | | ???????????? #?## ;; ##??????? | | ???####???? #?# %! ???? | | ??## #??? ##??# #### ???? | | ? ??? ####; ##???????? ????? | | ?? ???# ## #???????????????? | | ?? ???? #???????????????? | | #??# #???# & ##???????????????? | | ### ???## ###????????????????? | | ??## # ;;??????????????????? | | ### # #??????????????????? | | ## ## #??????????????????? | | ## #?# ##??????????????????? | | ## ### R #???????????????????? | | ##???????????????????? | | ##????????????????????? | | ## @##?????????????????????? | | ##### #??????????????????????? | | #???# #??????????????????????? | | #???# ;#??????????????????????? | | ## #####???# ##??????????????????????? | | # ##???????###### #???????????????????????? | | ##?????????????### #???????????????????????? | | # #????????????????####???????????????????????? | | ##??????###?????????????????????????????????? | | #?????## #?????????????????????????????????? | | # ##?????# ##?###????????????????????????????? | | # ##????# ### #????????????????????????????? | | #????# #????????????????????????????? | | * ###??# #####????????????????????????? | | #??## #????????????????????????? | | #???# """"""""#?????#####??????????????? | | ##?## " """"###????## #???????????#### | | ### ##?????##""""#???????????# [# | | ## ############ ""#????????????#% | | ### =& ###???##" #????????????# | | #?# !%! #?????#" ##????????????# | | #?## ## = ######???### ##?????#######?## [ | | #??###### !### #?????# ######## # ### | | ###????## #????## | | ##???# ##??###" "" | +----------------------------------------------------+ Best States ------------- Heat Dissipation 25 Energy Generation 15 Energy Capacity 250 Matter Stores 300 Matter Capacity 300 Sight Range 16 Terrain Scan Density 10 Evasion (%) 50 Recoil Reduction 2 Item Schematics ----------------- None Robot Schematics ------------------ None Fabricated ------------ Nothing Repaired ---------- Lgt. Treads | 26% | -10/Materials Lgt. Treads | 37% | -10/Materials Alien Tech Used ----------------- None Achievements -------------- None Challenges ------------ None Game ------ Seed SpikedMultireflexScythe Manual? 0 Play Time 00:30:32 Cumulative 314.5 hours Start 2025.05.06 @ 11:07:25 End 2025.05.06 @ 11:38:13 Sessions 2 Manual Loads 0 Difficulty Rogue Special Mode None Game No. 205 Rogue 205 Adventurer 0 Explorer 0 Win Type - Total 6 Types 6/0/0/0/0/0/0/0/0/0 Lore% 61 Gallery% 71 Achievement% 66 Wizard Run 0 Options --------- Layout 1 ASCII 0 Keyboard 1 Movement Numpad Keybinds 0 Fullscreen 2 Font 24/Smallcaps Map View 50x35 Zoom Use 0% Tactical HUD 1 Map Filters NONE Filters NONE Steam 1 RUN: 85ca1497-45df-4c08-b96f-df2c39b05f82